bitfinex-derivatives/quotes_ETHF0:USTF0_20260123
["timestamp","ask_amount","ask_price","bid_price","bid_amount"]
[1769131748254,1.21083884,2957.5,2956.9,0.00507527]
[1769131748454,1.21083884,2957.4,2956.9,0.00507527]
[1769131748659,0.13687676,2957.6,2956.9,0.00507527]
[1769131748850,1.21073638,2957.5,2956.9,0.00507527]
[1769131749051,1.21073638,2957.4,2956.9,0.00507527]
[1769131749346,0.13687676,2957.6,2956.9,0.00507527]
[1769131749552,1.21064949,2957.5,2956.9,0.00507527]
[1769131749849,1.21064949,2957.4,2956.9,0.00507527]
[1769131750156,0.13687676,2957.6,2956.9,0.00507527]
[1769131750357,0.14195203,2957.4,2955.9,6.38691567]
[1769131750654,0.30480502,2957.3,2955.9,6.38691567]
[1769131750854,0.14195203,2957.4,2955.9,6.38691567]
[1769131751055,0.30478808,2957.3,2956.0,0.13330956]
[1769131751255,0.14195203,2957.4,2956.0,0.13754506]
[1769131751451,0.30476502,2957.3,2956.0,0.13754506]
[1769131751655,0.14195203,2957.4,2956.0,0.13754506]
[1769131751954,0.30476504,2957.3,2956.0,0.13754506]
[1769131752150,0.14195203,2957.4,2956.0,0.13754506]
[1769131753562,0.00507527,2957.4,2956.3,0.13330956]
[1769131760863,0.00507527,2957.4,2956.6,1.00778027]
[1769131763569,0.00312655,2958.0,2957.0,0.13330956]
[1769131763868,1.20854439,2957.9,2957.0,0.13330956]
[1769131764066,1.20854439,2957.8,2957.0,0.13330956]
[1769131764262,0.30472949,2957.7,2957.2,1.00778027]
[1769131764565,0.00312655,2958.0,2957.2,1.00778027]
[1769131764761,6.30469681,2957.9,2957.2,1.00778027]
[1769131764961,6.0,2957.9,2957.2,1.00778027]
[1769131766263,6.0,2957.9,2957.0,0.13330956]
[1769131766465,0.00312655,2958.0,2957.0,0.13330956]
[1769131766663,0.30460834,2957.9,2957.2,0.00507527]
[1769131766865,0.14000331,2958.0,2957.2,0.00507527]
[1769131767068,1.20808024,2957.9,2957.2,0.00507527]
[1769131767265,0.14000331,2958.0,2957.2,0.00507527]
[1769131767466,1.2079804,2957.9,2957.2,0.00507527]
[1769131767664,0.44146414,2957.8,2956.6,1.00778027]
[1769131767965,0.44146414,2957.8,2956.5,0.13330956]
[1769131767966,1.20805698,2957.7,2956.5,0.13330956]
[1769131768167,0.14195203,2957.8,2956.5,0.13330956]
[1769131768469,1.20804231,2957.7,2956.6,1.00778027]
[1769131768658,0.14195203,2957.8,2956.6,1.00778027]
[1769131768855,1.20804185,2957.7,2956.6,1.00778027]
[1769131769166,0.14195203,2957.8,2956.6,1.00778027]
[1769131769367,1.20804001,2957.7,2956.7,0.13330956]
[1769131769669,0.00507527,2957.8,2956.9,1.00778027]
[1769131771160,0.00507527,2957.8,2956.7,0.13330956]
[1769131776069,0.30457675,2957.7,2956.7,0.13330956]
[1769131776269,0.30457675,2957.6,2956.7,0.13330956]
[1769131776469,0.00507527,2957.8,2956.7,0.13330956]
[1769131776671,0.30457741,2957.7,2956.7,0.13330956]
[1769131776868,0.30457741,2957.6,2956.7,0.13330956]
[1769131777064,0.00507527,2957.8,2956.7,0.13330956]
[1769131777362,0.30457745,2957.7,2956.7,0.13330956]
[1769131777561,0.30457745,2957.6,2956.7,0.13330956]
[1769131777763,0.00507527,2957.8,2956.7,0.13330956]
[1769131778072,0.30458107,2957.7,2956.7,0.13330956]
[1769131778264,0.30458107,2957.6,2956.7,0.13330956]
[1769131778557,0.00507527,2957.8,2956.7,0.13330956]
[1769131778761,0.30458765,2957.7,2956.7,0.13330956]
[1769131779059,0.30458765,2957.6,2956.7,0.13330956]
[1769131779358,0.00507527,2957.8,2956.7,0.13330956]
[1769131779562,0.30459724,2957.7,2956.9,1.14696664]
[1769131779763,0.00507527,2957.8,2956.9,1.14696664]
[1769131779964,0.30459426,2957.7,2956.9,1.14696664]
[1769131780165,0.00507527,2957.8,2956.9,1.14696664]
[1769131780367,0.30460617,2957.7,2957.2,1.00778027]
[1769131780665,0.00507527,2957.8,2957.2,1.00778027]
[1769131785672,0.00507527,2957.8,2956.3,4.25129]
[1769131785673,0.15010844,2960.1,2957.8,0.13918637]
[1769131785872,0.15010844,2960.1,2957.7,2.01556054]
[1769131785873,1.20647217,2960.0,2959.0,1.00778027]
[1769131786078,1.20647217,2959.9,2959.0,1.00778027]
[1769131786272,1.00778027,2959.9,2959.0,1.00778027]
[1769131786467,0.00297836,2959.9,2959.0,1.01192349]
[1769131786675,0.15010844,2961.2,2959.6,1.14696664]
[1769131786874,1.18895013,2961.1,2960.1,1.00778027]
[1769131787081,1.18895013,2961.1,2959.7,0.13918637]
[1769131787082,0.15010844,2961.6,2960.4,1.00778027]
[1769131787281,2.19421685,2961.5,2960.1,1.00778027]
[1769131787581,1.18643658,2961.4,2960.7,0.00506663]
[1769131787774,1.00778027,2961.2,2960.7,0.00506663]
[1769131788077,1.00778027,2961.0,2960.1,1.00778027]
[1769131788374,1.00778027,2961.0,2959.8,1.00778027]
[1769131788579,0.00836911,2961.2,2959.8,1.00778027]
[1769131788776,1.01614938,2961.2,2959.8,1.00778027]
[1769131789980,0.00836911,2961.2,2959.8,1.00778027]
[1769131790169,1.00778027,2961.1,2959.8,1.00778027]
[1769131793192,1.15788871,2961.1,2959.7,0.13918637]
[1769131793492,0.15010844,2960.8,2959.5,1.00778027]
[1769131793681,1.00778027,2961.0,2959.6,0.13918637]
[1769131794088,1.00778027,2960.9,2959.6,0.13918637]
[1769131794289,1.00778027,2961.0,2959.6,0.13918637]
[1769131794792,1.00778027,2960.9,2959.6,0.13918637]
[1769131794993,0.15010844,2961.1,2959.6,0.13918637]
[1769131795194,0.15010844,2961.1,2959.8,1.00778027]
[1769131795591,1.00778027,2961.0,2959.8,1.00778027]
[1769131797796,1.00778027,2960.9,2959.8,1.00778027]
[1769131797997,1.00778027,2961.0,2959.8,1.00778027]
[1769131798393,1.00778027,2960.9,2959.8,1.00778027]
[1769131798594,1.00778027,2961.0,2959.8,1.00778027]
[1769131799296,1.00778027,2960.9,2959.8,1.00778027]
[1769131799496,1.00778027,2961.0,2959.8,1.00778027]
[1769131799992,1.00778027,2960.9,2959.8,1.00778027]
[1769131800203,1.00778027,2961.0,2959.8,1.00778027]
[1769131801398,0.15010844,2961.1,2959.8,1.14696664]
[1769131801399,1.00778027,2960.9,2959.8,1.14696664]
[1769131801597,1.00778027,2961.0,2959.8,1.14696664]
[1769131801798,0.00836911,2961.2,2959.8,1.14696664]
[1769131801799,0.00836911,2961.2,2959.9,0.15094325]
[1769131802098,1.00778027,2961.1,2960.1,1.00778027]
[1769131802601,1.00778027,2961.0,2960.1,1.00778027]
[1769131802791,1.00778027,2961.0,2959.9,0.15094325]
[1769131802995,0.00836911,2961.2,2959.9,0.15094325]
[1769131803197,1.00778027,2961.1,2959.9,0.15094325]
[1769131803398,0.00836911,2961.2,2959.9,0.15094325]
[1769131803602,0.73702027,2961.1,2959.9,0.15094325]
[1769131805504,0.1543682,2961.2,2959.9,0.15094325]
[1769131805706,0.73702027,2961.0,2959.9,0.15094325]
[1769131806101,0.73702027,2960.9,2959.9,0.15094325]
[1769131806297,0.73702027,2961.0,2959.9,0.15094325]
[1769131806702,0.73702027,2960.9,2959.9,0.15094325]
[1769131806908,0.73702027,2961.0,2959.9,0.15094325]
[1769131807209,0.73702027,2961.1,2960.1,1.00778027]
[1769131807611,0.73702027,2960.9,2960.1,1.00778027]
[1769131807803,0.14599909,2960.9,2959.7,1.00778027]
[1769131808202,0.88301936,2960.9,2959.7,1.00778027]
[1769131808805,0.73702027,2960.8,2959.7,1.00778027]
[1769131809114,0.14599909,2960.9,2959.7,1.00778027]
[1769131809408,1.01614938,2961.2,2959.7,1.14801319]
[1769131809613,1.01614938,2961.2,2959.6,5.005]
[1769131809614,0.00836911,2961.2,2960.3,1.00778027]
[1769131810120,0.73702027,2960.9,2960.3,1.00778027]
[1769131810415,0.00836911,2961.2,2960.3,1.14801319]
[1769131810616,0.74538938,2961.2,2960.4,0.14023292]
[1769131811111,0.73702027,2961.1,2960.4,0.14023292]
[1769131811313,0.00836911,2961.2,2960.6,1.00778027]
[1769131811508,1.17675027,2962.0,2960.6,1.00778027]
[1769131811715,0.73702027,2961.6,2960.6,1.00778027]
[1769131812211,0.73702027,2961.4,2960.6,1.00778027]
[1769131812411,0.73702027,2961.6,2960.6,1.00778027]
[1769131812603,0.88997423,2961.5,2960.6,1.00778027]
[1769131812808,0.73702027,2961.4,2960.6,1.00778027]
[1769131813210,0.73702027,2961.3,2960.6,1.00778027]
[1769131813521,0.0024061,2961.6,2960.6,1.00778027]
[1769131813522,0.73702027,2961.4,2960.7,0.00506663]
[1769131814014,0.73702027,2961.2,2960.7,0.00506663]
[1769131814214,0.73702027,2961.3,2960.7,0.00506663]
[1769131814611,0.73702027,2961.2,2960.7,0.00506663]
[1769131814818,0.73702027,2961.4,2960.7,0.00506663]
[1769131815211,2.42833582,2962.1,2961.2,1.00778027]
[1769131815418,3.00300016,2962.7,2961.9,1.00778027]
[1769131815712,1.32155085,2962.3,2961.9,1.00778027]
[1769131815913,1.31750946,2962.4,2961.3,1.00778027]
[1769131816108,1.00778027,2963.0,2961.3,1.00778027]
[1769131816311,1.31750946,2962.8,2961.6,1.00778027]
[1769131816818,1.31750946,2962.6,2961.6,1.00778027]
[1769131817019,1.31750946,2962.7,2961.6,1.00778027]
[1769131817518,1.31750946,2962.5,2961.6,1.00778027]
[1769131817716,0.14599909,2962.2,2961.3,0.0037104]
[1769131817915,1.31750946,2961.9,2961.3,0.0037104]
[1769131818218,0.14876288,2963.0,2961.8,1.00778027]
[1769131818419,1.46350855,2962.7,2962.2,1.00778027]
[1769131818612,0.29095726,2962.6,2962.2,1.00778027]
[1769131818812,1.31750946,2962.3,2961.9,1.00778027]
[1769131819012,0.14599909,2962.7,2961.9,1.00778027]
[1769131819213,1.31750946,2962.5,2961.9,1.00778027]
[1769131819721,1.31750946,2962.4,2961.9,1.00778027]
[1769131820012,1.31750946,2962.3,2961.6,1.00778027]
[1769131820213,1.31750946,2962.6,2961.3,0.0037104]
[1769131820420,0.14599909,2962.5,2961.3,1.01149067]
[1769131820622,1.46350855,2962.4,2961.3,1.01149067]
[1769131820812,0.14599909,2962.0,2961.3,0.0037104]
[1769131821009,0.14599909,2961.9,2960.0,0.16908]
[1769131821214,0.14599909,2961.9,2960.1,5.011]
[1769131821517,0.14599909,2961.9,2960.7,0.00506663]
[1769131821911,1.31750946,2961.7,2960.7,0.00506663]
[1769131822112,1.31750946,2961.7,2960.7,0.00779114]
[1769131822314,1.31750946,2961.6,2960.7,0.00779114]
[1769131822522,1.31750946,2961.7,2960.7,0.00779114]
[1769131822716,0.14599909,2962.6,2960.7,0.00779114]
[1769131823014,1.46350855,2962.4,2960.7,0.00779114]
[1769131823322,0.29032472,2962.3,2960.7,0.00779114]
[1769131823516,0.29032472,2962.2,2960.7,0.00779114]
[1769131823716,0.14599909,2962.4,2960.7,0.00779114]
[1769131823918,0.2902674,2962.3,2960.7,0.00779114]
[1769131824115,1.46350855,2962.4,2960.7,0.00779114]
[1769131824315,0.14599909,2962.1,2960.7,0.00779114]
[1769131824518,0.14599909,2962.0,2960.7,0.00779114]
[1769131824724,1.31750946,2961.8,2960.7,0.00779114]
[1769131825320,0.14599909,2962.4,2960.7,0.00779114]
[1769131825713,1.31750946,2962.3,2960.7,0.00779114]
[1769131826317,1.46350855,2962.3,2960.7,0.00779114]
[1769131829821,0.14599909,2962.2,2960.7,0.00779114]
[1769131831822,1.46350855,2962.2,2960.7,0.00779114]
[1769131832423,0.14017543,2962.1,2960.7,0.00779114]
[1769131832922,0.00276379,2963.0,2960.7,0.00779114]
[1769131832923,0.14017543,2961.9,2960.7,0.00779114]
[1769131833315,1.45768489,2961.5,2960.7,0.00779114]
[1769131833627,0.14017543,2962.0,2960.7,0.00779114]
[1769131834124,0.00506663,2961.6,2960.7,0.00779114]
[1769131834326,0.00506663,2961.6,2960.7,5.00579114]
[1769131834523,0.14017543,2961.2,2959.9,2.40962562]
[1769131834824,0.14524206,2961.6,2959.9,5.14233106]
[1769131835722,0.14524206,2961.6,2959.9,5.14469896]
[1769131837528,0.14017543,2961.3,2960.0,4.998]
[1769131837730,1.45768489,2961.3,2960.0,4.997]
[1769131837931,1.31750946,2961.1,2960.0,4.997]
[1769131838121,0.14017543,2961.2,2960.0,4.997]
[1769131838321,1.31750946,2961.1,2960.0,4.997]
[1769131838722,1.31750946,2961.0,2960.0,4.997]
[1769131838926,1.31750946,2961.1,2960.0,4.997]
[1769131839225,1.31750946,2961.0,2960.0,4.997]
[1769131839425,0.14017543,2961.2,2960.0,4.997]
[1769131839426,1.31750946,2961.1,2960.0,4.997]
[1769131839621,1.45768489,2961.0,2959.9,0.0023679]
[1769131839826,0.14017543,2961.0,2959.9,5.0003679]
[1769131840024,1.31750946,2960.9,2959.9,5.0003679]
[1769131840229,1.32143166,2960.9,2959.9,5.0003679]
[1769131840819,1.31750946,2960.5,2959.9,0.0023679]
[1769131841024,1.45768489,2960.4,2959.9,0.0023679]
[1769131841225,1.45768489,2960.4,2959.3,4.998]
[1769131841426,0.14017543,2960.4,2959.3,4.998]
[1769131842222,0.14017543,2960.4,2959.3,5.00182384]
[1769131843130,1.31750946,2960.3,2959.3,5.01282384]
[1769131843327,0.14409763,2960.9,2959.3,5.01282384]
[1769131843527,1.31750946,2960.7,2959.3,5.01282384]
[1769131843732,0.00506663,2960.4,2959.3,5.01282384]
[1769131844134,1.32257609,2960.4,2959.3,5.01282384]
[1769131849326,1.31750946,2960.3,2959.3,5.01282384]
[1769131849527,0.00506663,2960.4,2959.3,5.01282384]
[1769131849729,1.31750946,2960.3,2959.3,5.01282384]
[1769131852835,1.31750946,2960.1,2959.3,5.01282384]
[1769131853140,1.31750946,2960.0,2959.4,5.046]
[1769131853542,0.14524206,2960.4,2959.4,5.046]
[1769131853840,1.31244283,2960.0,2959.4,5.046]
[1769131854342,0.14524206,2960.4,2959.4,5.046]
[1769131854343,1.31244283,2959.8,2959.4,5.046]
[1769131854539,1.31244283,2960.0,2959.4,5.046]
[1769131854934,1.31244283,2959.8,2959.4,5.046]
[1769131855130,1.31244283,2960.0,2959.4,5.046]
[1769131855740,0.0039222,2960.9,2959.4,5.18933106]
[1769131858745,0.0039222,2960.9,2959.3,0.00382384]
[1769131858746,0.14409763,2960.9,2959.5,5.059]
[1769131862348,0.87492315,2960.8,2959.5,5.059]
[1769131862544,0.13213888,2960.8,2959.5,5.059]
[1769131863141,0.13213888,2960.8,2959.9,0.00506663]
[1769131863939,6.13213888,2960.8,2959.9,0.00506663]
[1769131864545,0.1387193,2960.7,2959.9,0.00506663]
[1769131866339,0.0039222,2960.9,2959.9,0.00506663]
[1769131866542,0.1387193,2961.2,2960.1,1.00566633]
[1769131866749,0.87632641,2961.1,2960.1,1.00566633]
[1769131866943,0.87632641,2961.0,2960.1,1.00566633]
[1769131867143,0.1387193,2961.2,2960.1,1.00566633]
[1769131867339,0.87663083,2961.1,2960.1,1.00566633]
[1769131867554,0.00282388,2961.1,2960.1,1.00566633]
[1769131869155,0.87714047,2961.0,2960.1,1.00566633]
[1769131869355,0.00282388,2961.1,2960.1,1.00566633]
[1769131869652,0.87709262,2961.0,2960.1,1.00566633]
[1769131869853,0.00282388,2961.1,2960.1,1.00566633]
[1769131870054,0.87709255,2961.0,2960.1,1.00566633]
[1769131870253,0.00282388,2961.1,2960.1,1.00566633]
[1769131870454,0.87709215,2961.0,2960.1,1.00566633]
[1769131870752,0.00282388,2961.1,2960.1,1.00566633]
[1769131870953,0.87709267,2961.0,2959.9,0.00506663]
[1769131871157,0.00282388,2961.1,2959.9,0.00506663]
[1769131871454,0.87709415,2961.0,2959.9,0.00506663]
[1769131871654,0.00282388,2961.1,2959.9,0.00506663]
[1769131871852,0.87695666,2961.0,2959.9,0.00506663]
[1769131872059,0.1387193,2961.0,2959.9,0.00506663]
[1769131878665,0.42824599,2960.9,2959.9,0.00506663]
[1769131878866,0.1387193,2960.9,2959.9,0.00506663]
[1769131879764,0.28952319,2960.8,2959.9,0.00506663]
[1769131879962,0.1387193,2960.9,2959.9,0.00506663]
[1769131880270,0.1387193,2960.7,2959.9,0.00506663]
[1769131880467,0.1387193,2960.5,2959.9,0.00506663]
[1769131880864,0.14378593,2960.5,2959.9,0.00506663]
[1769131882365,0.1387193,2960.9,2959.9,0.00506663]
[1769131882573,1.16625289,2960.8,2959.9,0.00506663]
[1769131882765,0.28949761,2960.7,2959.9,0.00506663]
[1769131883063,0.1387193,2960.9,2960.5,1.00541096]
[1769131883370,0.00282388,2961.1,2960.2,1.00541096]
[1769131883560,1.16618872,2961.0,2960.2,1.00541096]
[1769131883764,0.28947812,2960.9,2960.2,1.00541096]
[1769131883967,0.00282388,2961.1,2960.2,1.00541096]
[1769131884168,1.16619026,2961.0,2960.2,1.00541096]
[1769131884367,0.28947857,2960.9,2960.2,1.00541096]
[1769131884568,0.00282388,2961.1,2960.2,1.00541096]
[1769131884767,1.16623958,2961.0,2960.2,1.00541096]
[1769131885071,0.28949084,2960.9,2960.2,1.00541096]
[1769131885275,0.00282388,2961.1,2960.2,1.00541096]
[1769131885573,1.16631719,2961.0,2960.5,1.00541096]
[1769131885775,0.28950995,2960.9,2960.5,1.00541096]
[1769131885975,0.00282388,2961.1,2960.5,1.00541096]
[1769131888080,0.28948206,2961.0,2960.5,1.00541096]
[1769131888280,0.00282388,2961.1,2960.5,1.00541096]
[1769131888577,0.28948259,2961.0,2960.5,1.00541096]
[1769131888773,0.00282388,2961.1,2960.5,1.00541096]
[1769131888973,0.28948217,2961.0,2960.5,1.00541096]
[1769131889174,0.00282388,2961.1,2960.5,1.00541096]
[1769131889373,0.28948258,2961.0,2960.5,1.00541096]
[1769131889573,0.00282388,2961.1,2960.5,1.00541096]
[1769131889773,0.28948389,2961.0,2960.5,1.00541096]
[1769131890076,0.00282388,2961.1,2960.2,1.00541096]
[1769131890381,0.28948447,2961.0,2960.2,1.00541096]
[1769131890577,0.00282388,2961.1,2960.2,1.00541096]
[1769131890779,0.28948733,2961.0,2960.2,1.00541096]
[1769131890978,0.00282388,2961.1,2960.2,1.00541096]
[1769131891277,0.28948734,2961.0,2960.2,1.00541096]
[1769131891478,0.00282388,2961.1,2960.2,1.00541096]
[1769131891678,0.28949303,2961.0,2960.2,1.00541096]
[1769131891878,0.00282388,2961.1,2960.2,1.00541096]
[1769131892080,0.28949305,2961.0,2960.2,1.00541096]
[1769131892280,0.00282388,2961.1,2960.2,1.00541096]
[1769131892480,0.28950094,2961.0,2960.2,1.00541096]
[1769131892683,0.00282388,2961.1,2960.2,1.00541096]
[1769131892882,0.28949934,2961.0,2960.2,1.00541096]
[1769131893182,0.00282388,2961.1,2960.2,1.00541096]
[1769131893383,0.28949972,2961.0,2960.2,1.00541096]
[1769131893679,0.00282388,2961.1,2960.5,1.00541096]
[1769131893981,0.13958752,2961.6,2960.8,1.00541096]
[1769131894179,0.87668581,2961.5,2960.8,1.00541096]
[1769131894375,0.87668581,2961.4,2960.8,1.00541096]
[1769131894576,0.13958752,2962.0,2960.8,1.00541096]
[1769131894776,0.87626855,2961.9,2960.8,1.00541096]
[1769131894977,0.00280392,2962.0,2961.5,1.00541096]
[1769131895181,0.00280392,2962.0,2961.4,1.00541096]
[1769131895386,2.41951241,2962.4,2961.7,1.00541096]
[1769131895684,0.13958752,2962.5,2961.7,1.00541096]
[1769131896383,0.143149,2962.5,2961.4,1.0142645]
[1769131897582,0.143149,2962.5,2961.4,0.00885354]
[1769131898085,0.143149,2962.5,2961.4,1.0142645]
[1769131899089,0.00356148,2962.5,2961.4,1.0142645]
[1769131900785,0.143149,2962.5,2961.4,0.00885354]
[1769131905092,0.143149,2962.5,2960.4,0.14924769]
[1769131905093,0.13958752,2961.8,2960.4,0.14924769]
[1769131905286,0.13958752,2961.8,2960.2,1.00541096]
[1769131905487,0.13958752,2961.5,2960.0,0.14924769]
[1769131906190,1.14499848,2961.3,2960.0,0.0041039]
[1769131906379,1.14499848,2961.3,2960.5,0.00506663]
[1769131906580,0.42565773,2961.2,2960.0,0.0041039]
[1769131906784,0.42566805,2961.1,2960.0,0.0041039]
[1769131906991,0.13958752,2961.1,2960.0,0.0041039]
[1769131909094,0.169,2961.4,2960.0,0.0041039]
[1769131909291,0.28607319,2961.3,2960.0,0.15335159]
[1769131909489,0.30856752,2961.9,2960.0,0.15335159]
[1769131909690,0.13958752,2961.7,2960.0,0.0041039]
[1769131909893,0.13958752,2961.5,2960.0,0.0041039]
[1769131910196,1.28876929,2961.4,2960.0,0.0041039]
[1769131910395,1.14918177,2961.3,2960.0,0.0041039]
[1769131910598,0.28606638,2961.2,2960.0,0.0041039]
[1769131910797,0.13958752,2961.4,2960.0,0.0041039]
[1769131911007,1.14928026,2961.3,2960.0,0.0041039]
[1769131911187,0.28609103,2961.2,2960.0,0.0041039]
[1769131911501,0.13958752,2961.4,2960.0,0.0041039]
[1769131911696,1.14948834,2961.3,2960.0,0.0041039]
[1769131911898,0.28614287,2961.2,2960.0,0.0041039]
[1769131912098,0.13958752,2961.4,2960.0,0.0041039]
[1769131912298,1.14948747,2961.3,2960.0,0.0041039]
[1769131912495,0.28614262,2961.2,2960.0,0.0041039]
[1769131912701,0.13958752,2961.3,2960.0,0.0041039]
[1769131912896,1.14969923,2961.2,2960.0,0.0041039]
[1769131913098,0.13958752,2961.3,2960.0,0.0041039]
[1769131913403,1.14970489,2961.2,2960.0,0.0041039]
[1769131913602,0.13958752,2961.3,2960.0,0.0041039]
[1769131913800,1.14972225,2961.2,2960.0,0.0041039]
[1769131913999,0.13958752,2961.3,2960.0,0.0041039]
[1769131914194,0.28620147,2961.2,2960.0,0.0041039]
[1769131914397,0.13958752,2961.3,2960.0,0.0041039]
[1769131914596,0.13958752,2961.1,2960.0,0.0041039]
[1769131914796,0.28621278,2961.0,2960.0,0.0041039]
[1769131916007,0.4258003,2961.0,2960.0,0.0041039]
[1769131916302,0.13958752,2961.0,2960.0,0.0041039]
[1769131925711,0.15036969,2961.9,2960.0,0.14434717]
[1769131925915,1.14887577,2961.8,2960.0,0.14434717]
[1769131926209,1.14887577,2961.7,2960.0,0.14434717]
[1769131926408,0.15036969,2961.9,2960.0,0.14434717]
[1769131927112,0.28605768,2961.8,2960.0,0.14434717]
[1769131927304,0.15036969,2961.9,2960.0,0.14434717]
[1769131927504,0.28610295,2961.8,2960.0,0.14434717]
[1769131927713,0.15036969,2961.9,2960.0,0.14434717]
[1769131927908,0.28610287,2961.8,2960.1,0.14024327]
[1769131928110,0.15036969,2961.9,2960.1,0.14024327]
[1769131929008,0.15036969,2961.7,2960.1,0.14024327]
[1769131930911,0.15036969,2961.7,2960.6,1.00514175]
[1769131932113,0.15036969,2961.7,2960.3,1.00514175]
[1769131933318,0.28674534,2961.6,2960.3,1.00514175]
[1769131933515,0.15036969,2961.7,2960.3,1.00514175]
[1769131933823,0.28674547,2961.6,2960.3,1.00514175]
[1769131934121,0.15036969,2961.7,2960.3,1.00514175]
[1769131934321,1.15320601,2961.6,2960.3,1.00514175]
[1769131934523,0.15036969,2961.7,2960.3,1.00514175]
[1769131934819,1.15336286,2961.6,2960.3,1.00514175]
[1769131935021,0.15036969,2961.7,2960.3,1.00514175]
[1769131935214,1.15335849,2961.6,2960.3,1.00514175]
[1769131935414,0.15036969,2961.7,2960.3,1.00514175]
[1769131935615,1.15349766,2961.6,2960.3,1.00514175]
[1769131935814,0.15036969,2961.7,2960.3,1.00514175]
[1769131936022,1.15349772,2961.6,2960.3,1.00514175]
[1769131936222,0.15036969,2961.7,2960.3,1.00514175]
[1769131936425,1.15342948,2961.6,2960.3,1.00514175]
[1769131936618,0.28692254,2961.5,2960.3,1.00514175]
[1769131936823,0.15036969,2961.7,2960.3,1.00514175]
[1769131937123,1.15342934,2961.6,2960.3,1.00514175]
[1769131937323,0.2869225,2961.5,2960.3,1.00514175]
[1769131937522,0.15036969,2961.7,2960.3,1.00514175]
[1769131937722,1.15338214,2961.6,2960.3,1.00514175]
[1769131937925,0.28691079,2961.5,2960.3,1.00514175]
[1769131938117,0.15036969,2961.7,2960.3,1.00514175]
[1769131938318,1.15337435,2961.6,2960.3,1.00514175]
[1769131938623,0.28690882,2961.5,2960.3,1.00514175]
[1769131938822,0.15036969,2961.7,2960.3,1.00514175]
[1769131939123,1.15337931,2961.6,2960.3,1.00514175]
[1769131939324,0.28690995,2961.5,2960.3,1.00514175]
[1769131939524,0.15036969,2961.7,2960.3,1.00514175]
[1769131939718,0.15036969,2961.5,2960.3,1.00514175]
[1769131939921,0.28690521,2961.4,2960.3,1.00514175]
[1769131940122,0.4372749,2961.4,2960.3,1.00514175]
[1769131940323,0.15036969,2961.4,2960.3,1.00514175]
[1769131941630,0.15036969,2961.8,2960.7,1.00514175]
[1769131941825,1.15337818,2961.7,2960.7,1.00514175]
[1769131942028,1.15337818,2961.6,2960.7,1.00514175]
[1769131942329,1.15337818,2961.5,2960.7,1.00514175]
[1769131942529,0.28691252,2961.4,2960.7,1.00514175]
[1769131942729,0.15036969,2961.8,2960.7,1.00514175]
[1769131942932,1.15335029,2961.7,2960.3,0.14024327]
[1769131943120,1.15335029,2961.6,2960.3,0.14024327]
[1769131943427,0.28690488,2961.5,2960.3,0.14024327]
[1769131943627,0.28690488,2961.4,2960.3,0.14024327]
[1769131943830,0.15036969,2961.8,2960.3,0.14024327]
[1769131944028,1.15333711,2961.7,2960.3,0.14024327]
[1769131944225,1.15333711,2961.6,2960.3,0.14024327]
[1769131944418,1.15333711,2961.5,2960.3,0.14024327]
[1769131944632,0.86643588,2961.4,2960.3,0.14024327]
[1769131944927,0.15036969,2961.8,2960.3,0.14024327]
[1769131945127,1.15334001,2961.7,2960.3,0.14024327]
[1769131945327,1.15334001,2961.6,2960.3,0.14024327]
[1769131945528,1.15334001,2961.5,2960.3,0.14024327]
[1769131945731,1.15334001,2961.4,2960.3,0.14024327]
[1769131946031,0.15036969,2961.8,2960.3,0.14024327]
[1769131946331,1.15341326,2961.7,2960.3,0.14024327]
[1769131946529,1.15341326,2961.6,2960.3,0.14024327]
[1769131946725,1.15341326,2961.5,2960.3,0.14024327]
[1769131946921,0.86648583,2961.4,2960.3,0.14024327]
[1769131947125,0.15036969,2961.7,2960.3,0.14024327]
[1769131947332,1.15355165,2961.6,2960.3,0.14024327]
[1769131947530,1.15355165,2961.5,2960.3,0.14024327]
[1769131947832,0.8665969,2961.4,2960.3,0.14024327]
[1769131948033,0.15036969,2961.7,2960.3,0.14024327]
[1769131948334,1.15365096,2961.6,2960.3,0.14024327]
[1769131948531,1.15365096,2961.5,2960.3,0.14024327]
[1769131948734,0.86666374,2961.4,2960.3,0.14024327]
[1769131948937,0.15036969,2961.7,2960.3,0.14024327]
[1769131949231,1.15379302,2961.6,2960.3,0.14024327]
[1769131949426,1.15379302,2961.5,2960.3,0.14024327]
[1769131949621,0.86677829,2961.4,2960.3,0.14024327]
[1769131949825,0.15036969,2961.7,2960.3,0.14024327]
[1769131950033,1.15397271,2961.6,2960.3,0.14024327]
[1769131950233,1.15397271,2961.5,2960.3,0.14024327]
[1769131950435,0.86691332,2961.4,2960.3,0.14024327]
[1769131950729,0.15036969,2961.7,2960.0,0.0041039]
[1769131951035,0.15036969,2961.5,2960.0,0.0041039]
[1769131951234,1.30438955,2961.4,2960.0,0.0041039]
[1769131951431,1.15401986,2961.3,2960.0,0.0041039]
[1769131951636,1.15401986,2961.2,2960.0,0.0041039]
[1769131951837,0.86694847,2961.1,2960.0,0.0041039]
[1769131952039,0.15036969,2961.4,2960.0,0.0041039]
[1769131952233,1.15431532,2961.3,2960.0,0.0041039]
[1769131952439,1.15431532,2961.2,2960.0,0.0041039]
[1769131952635,0.15009093,2961.0,2960.0,0.0041039]
[1769131952829,0.86713368,2960.9,2960.0,0.0041039]
[1769131953035,1.01722461,2960.9,2960.0,0.0041039]
[1769131953240,0.15009093,2960.9,2960.0,0.0041039]
[1769131953539,0.15009093,2960.9,2959.3,0.319552]
[1769131953540,0.15009093,2960.7,2959.3,0.150432]
[1769131953739,0.86738944,2960.6,2959.3,0.150432]
[1769131954238,0.00506663,2960.2,2959.3,0.150432]
[1769131954434,0.00931534,2960.2,2959.3,0.15291544]
[1769131961835,0.00931534,2960.2,2959.3,0.00248344]
[1769131964350,0.15940627,2960.2,2959.3,0.00248344]
[1769131966650,0.00931534,2960.2,2959.3,0.00248344]
[1769131975154,0.15009093,2960.0,2958.2,2.40962562]
[1769131975355,0.15009093,2959.8,2958.2,2.56005762]
[1769131975756,0.15009093,2959.8,2958.3,0.150432]
[1769131975960,0.43684164,2959.7,2958.3,0.150432]
[1769131976255,0.15009093,2959.7,2958.3,0.15447186]
[1769131977258,0.15009093,2959.7,2958.3,0.00403986]
[1769131978457,0.15009093,2959.5,2958.3,0.00403986]
[1769131980056,0.15009093,2959.3,2958.3,0.00403986]
[1769131980248,0.15009093,2959.3,2957.5,0.150432]
[1769131980452,0.15009093,2959.1,2957.5,0.150432]
[1769131980648,0.15009093,2959.1,2958.1,0.00506663]
[1769131980856,0.00506663,2958.6,2958.1,0.00506663]
[1769131981262,0.00506663,2958.6,2958.1,0.00819066]
[1769131990968,0.13582016,2958.6,2957.4,1.879]
[1769131992071,0.13582016,2958.6,2957.4,1.88296215]
[1769131992458,0.00506663,2958.6,2957.5,0.13510826]
[1769131997585,9.08659241,2960.0,2957.7,0.13510826]
[1769131997886,0.13075353,2959.8,2957.7,0.13510826]
[1769131998188,1.31766781,2959.9,2957.7,0.13510826]
[1769131998189,0.13075353,2959.6,2957.7,0.13510826]
[1769131998370,1.27933134,2959.5,2957.7,0.13510826]